[Event "Titled Tuesday Blitz September 28 2021"]
[White "Jary, Sergey"]
[Black "Rosen, Eric"]
[WhiteFideId "14110350"]
[BlackFideId "2032562"]
[WhiteElo "2260"]
[BlackElo "2362"]
[Result "0-1"]
[Round "05"]
[TimeControl "180+1"]
[Date "2021.09.28"]
[WhiteClock "0:00:07"]
[BlackClock "0:00:36"]

1. e4 {[%clk 0:02:52]}  e5 {[%clk 0:02:52]} 2. Nf3 {[%clk 0:02:52]}  Nf6 {[%clk 0:02:50]} 3. Nc3 {[%clk 0:02:50]}  Bc5 {[%clk 0:02:49]} 4. Nxe5 {[%clk 0:02:47]}  Nc6 {[%clk 0:02:50]} 5. Nxc6 {[%clk 0:02:43]}  dxc6 {[%clk 0:02:50]} 6. Be2 {[%clk 0:02:40]}  h5 {[%clk 0:02:44]} 7. O-O {[%clk 0:02:36]}  Ng4 {[%clk 0:02:43]} 8. h3 {[%clk 0:02:16]}  Qd4 {[%clk 0:02:42]} 9. Bxg4 {[%clk 0:02:05]}  hxg4 {[%clk 0:02:41]} 10. d3 {[%clk 0:01:49]}  gxh3 {[%clk 0:02:29]} 11. Be3 {[%clk 0:01:42]}  Qd6 {[%clk 0:01:56]} 12. Qf3 {[%clk 0:01:18]}  hxg2 {[%clk 0:01:49]} 13. Qxg2 {[%clk 0:01:13]}  Bh3 {[%clk 0:01:44]} 14. Qg5 {[%clk 0:01:03]}  Bg4 {[%clk 0:01:01]} 15. Bf4 {[%clk 0:00:46]}  Bf3 {[%clk 0:00:56]} 16. Qg2 {[%clk 0:00:09]}  Qg6 {[%clk 0:00:44]} 17. Bg3 {[%clk 0:00:07]}  Qxg3 {[%clk 0:00:36]} 0-1


[Site "https://www.chess.com"]

[Event "Titled Tuesday Blitz September 28 2021"]
[White "Karttunen, Mika"]
[Black "Rudzinska, Michalina"]
[WhiteFideId "502081"]
[BlackFideId "1172883"]
[WhiteElo "2343"]
[BlackElo "1778"]
[Result "1-0"]
[Round "05"]
[TimeControl "180+1"]
[Date "2021.09.28"]
[WhiteClock "0:00:12"]
[BlackClock "0:00:19"]

1. e4 {[%clk 0:03:00]}  c5 {[%clk 0:03:00]} 2. Nf3 {[%clk 0:02:59]}  d6 {[%clk 0:03:00]} 3. d4 {[%clk 0:02:58]}  cxd4 {[%clk 0:03:00]} 4. Nxd4 {[%clk 0:02:58]}  Nf6 {[%clk 0:03:01]} 5. Nc3 {[%clk 0:02:58]}  a6 {[%clk 0:03:02]} 6. Bg5 {[%clk 0:02:56]}  e6 {[%clk 0:03:01]} 7. f4 {[%clk 0:02:51]}  Be7 {[%clk 0:03:02]} 8. Qf3 {[%clk 0:02:22]}  Qc7 {[%clk 0:03:01]} 9. O-O-O {[%clk 0:02:20]}  Nbd7 {[%clk 0:03:01]} 10. g4 {[%clk 0:02:12]}  h6 {[%clk 0:03:01]} 11. Bxf6 {[%clk 0:02:08]}  Bxf6 {[%clk 0:03:02]} 12. h4 {[%clk 0:01:57]}  Nb6 {[%clk 0:02:59]} 13. g5 {[%clk 0:01:53]}  Bxd4 {[%clk 0:02:55]} 14. Rxd4 {[%clk 0:01:51]}  Qc5 {[%clk 0:02:55]} 15. Rd2 {[%clk 0:01:32]}  Bd7 {[%clk 0:02:53]} 16. g6 {[%clk 0:01:20]}  fxg6 {[%clk 0:02:50]} 17. Qg3 {[%clk 0:01:08]}  O-O-O {[%clk 0:02:42]} 18. Bd3 {[%clk 0:00:47]}  g5 {[%clk 0:02:36]} 19. h5 {[%clk 0:00:31]}  gxf4 {[%clk 0:02:25]} 20. Qxf4 {[%clk 0:00:31]}  Bc6 {[%clk 0:02:17]} 21. Rg2 {[%clk 0:00:29]}  Rd7 {[%clk 0:02:02]} 22. Rf1 {[%clk 0:00:27]}  Qe5 {[%clk 0:02:00]} 23. Qg4 {[%clk 0:00:25]}  Kb8 {[%clk 0:01:45]} 24. Kb1 {[%clk 0:00:23]}  Re7 {[%clk 0:01:37]} 25. a3 {[%clk 0:00:23]}  Nd7 {[%clk 0:01:30]} 26. Qh4 {[%clk 0:00:20]}  Nf6 {[%clk 0:01:28]} 27. Rh2 {[%clk 0:00:19]}  Rhe8 {[%clk 0:01:24]} 28. Rg1 {[%clk 0:00:18]}  d5 {[%clk 0:01:14]} 29. exd5 {[%clk 0:00:18]}  exd5 {[%clk 0:01:14]} 30. Rd2 {[%clk 0:00:16]}  d4 {[%clk 0:01:13]} 31. Ne2 {[%clk 0:00:15]}  Bf3 {[%clk 0:01:02]} 32. Nxd4 {[%clk 0:00:15]}  Bxh5 {[%clk 0:00:58]} 33. Bxa6 {[%clk 0:00:15]}  Qc5 {[%clk 0:00:33]} 34. Bb5 {[%clk 0:00:13]}  Re4 {[%clk 0:00:33]} 35. Qh2+ {[%clk 0:00:13]}  R8e5 {[%clk 0:00:24]} 36. c3 {[%clk 0:00:13]}  Bf7 {[%clk 0:00:20]} 37. Bd3 {[%clk 0:00:12]}  Re1+ {[%clk 0:00:19]} 38. Rxe1 {[%clk 0:00:12]} 1-0


[Site "https://www.chess.com"]

[Event "Titled Tuesday Blitz September 28 2021"]
[White "Kollars, Dmitrij"]
[Black "Sychev, Klementy"]
[WhiteFideId "12909572"]
[BlackFideId "4114060"]
[WhiteElo "2918"]
[BlackElo "2808"]
[Result "1-0"]
[Round "05"]
[TimeControl "180+1"]
[Date "2021.09.28"]
[WhiteClock "0:00:12"]
[BlackClock "0:00:02"]

1. e4 {[%clk 0:03:00]}  Nf6 {[%clk 0:02:42]} 2. e5 {[%clk 0:02:59]}  Nd5 {[%clk 0:02:43]} 3. d4 {[%clk 0:03:00]}  d6 {[%clk 0:02:43]} 4. c4 {[%clk 0:03:00]}  Nb6 {[%clk 0:02:43]} 5. f4 {[%clk 0:03:01]}  g6 {[%clk 0:02:40]} 6. Nc3 {[%clk 0:02:55]}  Bg7 {[%clk 0:02:40]} 7. Nf3 {[%clk 0:02:55]}  Be6 {[%clk 0:02:38]} 8. b3 {[%clk 0:02:33]}  O-O {[%clk 0:02:28]} 9. Be2 {[%clk 0:02:28]}  c5 {[%clk 0:02:05]} 10. dxc5 {[%clk 0:02:27]}  N6d7 {[%clk 0:02:03]} 11. cxd6 {[%clk 0:02:23]}  exd6 {[%clk 0:02:03]} 12. Qxd6 {[%clk 0:02:15]}  Nxe5 {[%clk 0:02:03]} 13. Qd2 {[%clk 0:02:01]}  Nxf3+ {[%clk 0:01:38]} 14. Bxf3 {[%clk 0:02:02]}  Nc6 {[%clk 0:01:22]} 15. Bb2 {[%clk 0:01:59]}  Nb4 {[%clk 0:00:27]} 16. O-O-O {[%clk 0:01:47]}  Bf5 {[%clk 0:00:21]} 17. Ne4 {[%clk 0:01:00]}  Nxa2+ {[%clk 0:00:17]} 18. Kc2 {[%clk 0:00:34]}  Qb6 {[%clk 0:00:16]} 19. Bxg7 {[%clk 0:00:32]}  Kxg7 {[%clk 0:00:16]} 20. Kb2 {[%clk 0:00:26]}  Rad8 {[%clk 0:00:16]} 21. Qf2 {[%clk 0:00:20]}  Qa5 {[%clk 0:00:11]} 22. Qc5 {[%clk 0:00:20]}  Qxc5 {[%clk 0:00:07]} 23. Nxc5 {[%clk 0:00:19]}  Nb4 {[%clk 0:00:08]} 24. Nxb7 {[%clk 0:00:15]}  Rb8 {[%clk 0:00:07]} 25. Kc3 {[%clk 0:00:12]}  Na2+ {[%clk 0:00:06]} 26. Kb2 {[%clk 0:00:13]}  Nb4 {[%clk 0:00:07]} 27. Rd2 {[%clk 0:00:13]}  Nd3+ {[%clk 0:00:06]} 28. Kc3 {[%clk 0:00:13]}  Nxf4 {[%clk 0:00:07]} 29. Nd6 {[%clk 0:00:14]}  Be6 {[%clk 0:00:05]} 30. Rf1 {[%clk 0:00:14]}  a5 {[%clk 0:00:03]} 31. Bc6 {[%clk 0:00:13]}  g5 {[%clk 0:00:03]} 32. h4 {[%clk 0:00:12]}  h6 {[%clk 0:00:03]} 33. hxg5 {[%clk 0:00:13]}  hxg5 {[%clk 0:00:04]} 34. Ne4 {[%clk 0:00:13]}  f6 {[%clk 0:00:04]} 35. Nc5 {[%clk 0:00:13]}  Bf5 {[%clk 0:00:04]} 36. Bd7 {[%clk 0:00:13]}  Kg6 {[%clk 0:00:02]} 37. Bxf5+ {[%clk 0:00:13]}  Kxf5 {[%clk 0:00:03]} 38. Nd7 {[%clk 0:00:14]}  a4 {[%clk 0:00:01]} 39. Nxf8 {[%clk 0:00:13]}  Rxb3+ {[%clk 0:00:01]} 40. Kc2 {[%clk 0:00:13]}  Rg3 {[%clk 0:00:01]} 41. c5 {[%clk 0:00:13]}  a3 {[%clk 0:00:02]} 42. c6 {[%clk 0:00:13]}  a2 {[%clk 0:00:02]} 43. Kb2 {[%clk 0:00:12]} 1-0


[Site "https://www.chess.com"]

[Event "Titled Tuesday Blitz September 28 2021"]
[White "Kovalchuk94"]
[Black "Coto Mederos, Michel"]
[BlackFideId "3508528"]
[WhiteElo "2676"]
[BlackElo "2427"]
[Result "1-0"]
[Round "05"]
[TimeControl "180+1"]
[Date "2021.09.28"]
[WhiteClock "0:01:07"]
[BlackClock "0:00:03"]

1. d4 {[%clk 0:03:00]}  d5 {[%clk 0:02:59]} 2. c4 {[%clk 0:03:00]}  e6 {[%clk 0:02:56]} 3. Nf3 {[%clk 0:03:00]}  Nf6 {[%clk 0:02:57]} 4. Nc3 {[%clk 0:03:00]}  Be7 {[%clk 0:02:56]} 5. Bf4 {[%clk 0:03:00]}  b6 {[%clk 0:02:54]} 6. e3 {[%clk 0:03:00]}  Bb7 {[%clk 0:02:54]} 7. Be2 {[%clk 0:03:00]}  O-O {[%clk 0:02:53]} 8. O-O {[%clk 0:03:00]}  c5 {[%clk 0:02:53]} 9. dxc5 {[%clk 0:02:58]}  bxc5 {[%clk 0:02:53]} 10. Qb3 {[%clk 0:02:57]}  Qb6 {[%clk 0:02:44]} 11. Qc2 {[%clk 0:02:57]}  Nc6 {[%clk 0:02:39]} 12. Rfd1 {[%clk 0:02:53]}  d4 {[%clk 0:02:22]} 13. Na4 {[%clk 0:02:46]}  Qa5 {[%clk 0:02:01]} 14. exd4 {[%clk 0:02:43]}  cxd4 {[%clk 0:01:44]} 15. Nxd4 {[%clk 0:02:20]}  Nb4 {[%clk 0:01:42]} 16. Qb3 {[%clk 0:02:16]}  e5 {[%clk 0:01:42]} 17. Nf5 {[%clk 0:02:16]}  exf4 {[%clk 0:01:14]} 18. Nxe7+ {[%clk 0:02:15]}  Kh8 {[%clk 0:01:15]} 19. a3 {[%clk 0:01:51]}  Qg5 {[%clk 0:01:04]} 20. Bf3 {[%clk 0:01:41]}  Rab8 {[%clk 0:00:33]} 21. axb4 {[%clk 0:01:37]}  Rfe8 {[%clk 0:00:17]} 22. Nc6 {[%clk 0:01:31]}  Bxc6 {[%clk 0:00:13]} 23. Bxc6 {[%clk 0:01:32]}  Re2 {[%clk 0:00:13]} 24. Bf3 {[%clk 0:01:28]}  Re7 {[%clk 0:00:11]} 25. Re1 {[%clk 0:01:26]}  Nd7 {[%clk 0:00:08]} 26. Rxe7 {[%clk 0:01:25]}  Qxe7 {[%clk 0:00:08]} 27. b5 {[%clk 0:01:20]}  Re8 {[%clk 0:00:08]} 28. h3 {[%clk 0:01:17]}  Ne5 {[%clk 0:00:07]} 29. Qc3 {[%clk 0:01:13]}  Qg5 {[%clk 0:00:07]} 30. Kh1 {[%clk 0:01:11]}  h6 {[%clk 0:00:06]} 31. Re1 {[%clk 0:01:11]}  f6 {[%clk 0:00:07]} 32. Nc5 {[%clk 0:01:08]}  Rd8 {[%clk 0:00:07]} 33. Ne6 {[%clk 0:01:08]}  Qf5 {[%clk 0:00:03]} 34. Nxd8 {[%clk 0:01:07]} 1-0


[Site "https://www.chess.com"]

[Event "Titled Tuesday Blitz September 28 2021"]
[White "Lazavik, Denis"]
[Black "Koksik_13"]
[WhiteFideId "13515110"]
[WhiteElo "2436"]
[BlackElo "2602"]
[Result "1-0"]
[Round "05"]
[TimeControl "180+1"]
[Date "2021.09.28"]
[WhiteClock "0:00:51"]
[BlackClock "0:00:49"]

1. d4 {[%clk 0:03:00]}  e6 {[%clk 0:02:59]} 2. c4 {[%clk 0:03:01]}  d5 {[%clk 0:02:59]} 3. Nc3 {[%clk 0:03:00]}  a6 {[%clk 0:03:00]} 4. cxd5 {[%clk 0:02:59]}  exd5 {[%clk 0:03:01]} 5. Nf3 {[%clk 0:02:59]}  Nf6 {[%clk 0:02:59]} 6. Bg5 {[%clk 0:02:58]}  c6 {[%clk 0:03:00]} 7. e3 {[%clk 0:02:56]}  Nbd7 {[%clk 0:03:00]} 8. Bd3 {[%clk 0:02:55]}  Be7 {[%clk 0:03:01]} 9. Qc2 {[%clk 0:02:52]}  O-O {[%clk 0:03:01]} 10. h3 {[%clk 0:02:48]}  Re8 {[%clk 0:03:01]} 11. Bf4 {[%clk 0:02:40]}  Nf8 {[%clk 0:03:01]} 12. O-O {[%clk 0:02:36]}  Bd6 {[%clk 0:03:00]} 13. Bxd6 {[%clk 0:02:24]}  Qxd6 {[%clk 0:03:01]} 14. Rab1 {[%clk 0:02:21]}  a5 {[%clk 0:02:58]} 15. a3 {[%clk 0:02:20]}  Ng6 {[%clk 0:02:58]} 16. Rfc1 {[%clk 0:02:18]}  Bd7 {[%clk 0:02:47]} 17. Na4 {[%clk 0:02:17]}  Ne4 {[%clk 0:02:42]} 18. b4 {[%clk 0:02:13]}  axb4 {[%clk 0:02:42]} 19. axb4 {[%clk 0:02:12]}  Qf6 {[%clk 0:02:42]} 20. Nb6 {[%clk 0:01:45]}  Rad8 {[%clk 0:02:29]} 21. Nxd7 {[%clk 0:01:40]}  Rxd7 {[%clk 0:02:30]} 22. b5 {[%clk 0:01:39]}  Rd6 {[%clk 0:02:28]} 23. bxc6 {[%clk 0:01:37]}  bxc6 {[%clk 0:02:29]} 24. Rb6 {[%clk 0:01:34]}  Ng5 {[%clk 0:02:00]} 25. Nxg5 {[%clk 0:01:30]}  Qxg5 {[%clk 0:02:01]} 26. Rxc6 {[%clk 0:01:24]}  Nh4 {[%clk 0:02:00]} 27. Bf1 {[%clk 0:01:21]}  Rg6 {[%clk 0:01:50]} 28. Rxg6 {[%clk 0:01:20]}  hxg6 {[%clk 0:01:51]} 29. Qc6 {[%clk 0:01:12]}  Rf8 {[%clk 0:01:17]} 30. Rc5 {[%clk 0:01:04]}  Rd8 {[%clk 0:01:17]} 31. Ra5 {[%clk 0:00:59]}  Nf3+ {[%clk 0:01:12]} 32. Kh1 {[%clk 0:00:59]}  Nd2 {[%clk 0:01:13]} 33. Bd3 {[%clk 0:00:57]}  Kh7 {[%clk 0:01:04]} 34. Qc2 {[%clk 0:00:51]}  Nc4 {[%clk 0:00:50]} 35. Bxc4 {[%clk 0:00:51]}  Rb8 {[%clk 0:00:49]} 1-0


[Site "https://www.chess.com"]

[Event "Titled Tuesday Blitz September 28 2021"]
[White "Lukovic, Vladimir"]
[Black "Balabayeva, Xeniya"]
[WhiteFideId "942952"]
[BlackFideId "13719688"]
[WhiteElo "2436"]
[BlackElo "1965"]
[Result "1-0"]
[Round "05"]
[TimeControl "180+1"]
[Date "2021.09.28"]
[WhiteClock "0:00:32"]
[BlackClock "0:00:02"]

1. e4 {[%clk 0:03:00]}  c6 {[%clk 0:02:59]} 2. d4 {[%clk 0:02:59]}  d5 {[%clk 0:03:00]} 3. e5 {[%clk 0:03:00]}  Bf5 {[%clk 0:02:59]} 4. Nf3 {[%clk 0:03:00]}  e6 {[%clk 0:02:58]} 5. Be2 {[%clk 0:03:00]}  Nd7 {[%clk 0:02:55]} 6. O-O {[%clk 0:03:00]}  c5 {[%clk 0:02:51]} 7. c4 {[%clk 0:02:58]}  dxc4 {[%clk 0:02:40]} 8. Na3 {[%clk 0:02:56]}  Rc8 {[%clk 0:02:28]} 9. Nxc4 {[%clk 0:02:53]}  cxd4 {[%clk 0:02:04]} 10. Bg5 {[%clk 0:02:17]}  f6 {[%clk 0:01:50]} 11. exf6 {[%clk 0:02:16]}  Ngxf6 {[%clk 0:01:07]} 12. Nxd4 {[%clk 0:02:08]}  Be7 {[%clk 0:00:54]} 13. Nxf5 {[%clk 0:01:57]}  exf5 {[%clk 0:00:52]} 14. Nd6+ {[%clk 0:01:57]}  Bxd6 {[%clk 0:00:51]} 15. Qxd6 {[%clk 0:01:56]}  Qe7 {[%clk 0:00:49]} 16. Bh5+ {[%clk 0:01:48]}  Kf8 {[%clk 0:00:38]} 17. Qd3 {[%clk 0:01:38]}  g6 {[%clk 0:00:32]} 18. Rfe1 {[%clk 0:01:28]}  Qf7 {[%clk 0:00:22]} 19. Qd6+ {[%clk 0:01:11]}  Kg7 {[%clk 0:00:15]} 20. Re7 {[%clk 0:01:10]}  gxh5 {[%clk 0:00:16]} 21. Rxf7+ {[%clk 0:01:03]}  Kxf7 {[%clk 0:00:16]} 22. Re1 {[%clk 0:00:51]}  Rhe8 {[%clk 0:00:16]} 23. Rxe8 {[%clk 0:00:51]}  Rxe8 {[%clk 0:00:17]} 24. f3 {[%clk 0:00:48]}  Re7 {[%clk 0:00:12]} 25. Qb4 {[%clk 0:00:46]}  b6 {[%clk 0:00:11]} 26. Qf4 {[%clk 0:00:44]}  Kg6 {[%clk 0:00:10]} 27. Bh4 {[%clk 0:00:43]}  Re2 {[%clk 0:00:08]} 28. Qg5+ {[%clk 0:00:42]}  Kf7 {[%clk 0:00:08]} 29. Qxf5 {[%clk 0:00:40]}  Rxb2 {[%clk 0:00:05]} 30. g4 {[%clk 0:00:33]}  hxg4 {[%clk 0:00:04]} 31. fxg4 {[%clk 0:00:34]}  Rb4 {[%clk 0:00:04]} 32. Bxf6 {[%clk 0:00:32]}  Nxf6 {[%clk 0:00:02]} 33. g5 {[%clk 0:00:32]} 1-0


[Site "https://www.chess.com"]

[Event "Titled Tuesday Blitz September 28 2021"]
[White "Lysyj, Igor"]
[Black "Weetik, Vjacheslav"]
[WhiteFideId "4150120"]
[BlackFideId "4153472"]
[WhiteElo "2660"]
[BlackElo "2469"]
[Result "1-0"]
[Round "05"]
[TimeControl "180+1"]
[Date "2021.09.28"]
[WhiteClock "0:00:27"]
[BlackClock "0:00:01"]

1. d4 {[%clk 0:03:00]}  Nf6 {[%clk 0:02:57]} 2. c4 {[%clk 0:03:00]}  g6 {[%clk 0:02:57]} 3. Nc3 {[%clk 0:02:59]}  Bg7 {[%clk 0:02:58]} 4. e4 {[%clk 0:02:59]}  d6 {[%clk 0:02:58]} 5. Be2 {[%clk 0:02:59]}  O-O {[%clk 0:02:59]} 6. Nf3 {[%clk 0:02:59]}  e5 {[%clk 0:02:58]} 7. O-O {[%clk 0:02:59]}  Nc6 {[%clk 0:02:58]} 8. d5 {[%clk 0:02:59]}  Ne7 {[%clk 0:02:59]} 9. Bg5 {[%clk 0:02:59]}  h6 {[%clk 0:02:52]} 10. Be3 {[%clk 0:02:58]}  Ng4 {[%clk 0:02:47]} 11. Bd2 {[%clk 0:02:56]}  f5 {[%clk 0:02:46]} 12. Nh4 {[%clk 0:02:52]}  Nf6 {[%clk 0:02:07]} 13. exf5 {[%clk 0:02:50]}  gxf5 {[%clk 0:02:03]} 14. g3 {[%clk 0:02:50]}  c6 {[%clk 0:01:43]} 15. Qb3 {[%clk 0:02:48]}  cxd5 {[%clk 0:01:39]} 16. cxd5 {[%clk 0:02:48]}  a6 {[%clk 0:01:18]} 17. a4 {[%clk 0:02:44]}  f4 {[%clk 0:01:03]} 18. gxf4 {[%clk 0:02:20]}  e4 {[%clk 0:00:37]} 19. Kh1 {[%clk 0:02:12]}  Nf5 {[%clk 0:00:19]} 20. Nxf5 {[%clk 0:02:04]}  Bxf5 {[%clk 0:00:20]} 21. Rg1 {[%clk 0:02:03]}  Qd7 {[%clk 0:00:18]} 22. Rg3 {[%clk 0:01:57]}  Kh7 {[%clk 0:00:18]} 23. Rag1 {[%clk 0:01:54]}  Rg8 {[%clk 0:00:18]} 24. Be3 {[%clk 0:01:49]}  h5 {[%clk 0:00:15]} 25. Rg5 {[%clk 0:01:45]}  Bh6 {[%clk 0:00:15]} 26. Rxg8 {[%clk 0:01:36]}  Rxg8 {[%clk 0:00:16]} 27. Rxg8 {[%clk 0:01:35]}  Kxg8 {[%clk 0:00:16]} 28. Qd1 {[%clk 0:00:55]}  Bg4 {[%clk 0:00:12]} 29. Bd4 {[%clk 0:00:46]}  Bxe2 {[%clk 0:00:03]} 30. Qxe2 {[%clk 0:00:45]}  Ng4 {[%clk 0:00:03]} 31. Qxe4 {[%clk 0:00:35]}  Bg7 {[%clk 0:00:03]} 32. h3 {[%clk 0:00:27]}  Nf6 {[%clk 0:00:02]} 33. Qe6+ {[%clk 0:00:26]}  Qxe6 {[%clk 0:00:01]} 34. dxe6 {[%clk 0:00:27]} 1-0


[Site "https://www.chess.com"]

[Event "Titled Tuesday Blitz September 28 2021"]
[White "Matamoros Franco, Carlos S."]
[Black "Salinas Herrera, Pablo"]
[WhiteFideId "3600017"]
[BlackFideId "3407128"]
[WhiteElo "2554"]
[BlackElo "2541"]
[Result "1/2-1/2"]
[Round "05"]
[TimeControl "180+1"]
[Date "2021.09.28"]
[WhiteClock "0:00:07"]
[BlackClock "0:00:04"]

1. Nf3 {[%clk 0:01:58]}  d5 {[%clk 0:02:59]} 2. g3 {[%clk 0:01:57]}  Nf6 {[%clk 0:03:00]} 3. Bg2 {[%clk 0:01:56]}  Bg4 {[%clk 0:03:00]} 4. h3 {[%clk 0:01:54]}  Bh5 {[%clk 0:03:00]} 5. d4 {[%clk 0:01:53]}  e6 {[%clk 0:03:01]} 6. c4 {[%clk 0:01:51]}  c6 {[%clk 0:03:01]} 7. Qb3 {[%clk 0:01:45]}  Qb6 {[%clk 0:03:00]} 8. Nc3 {[%clk 0:01:44]}  Be7 {[%clk 0:02:59]} 9. c5 {[%clk 0:01:45]}  Qxb3 {[%clk 0:02:59]} 10. axb3 {[%clk 0:01:45]}  a6 {[%clk 0:02:59]} 11. b4 {[%clk 0:01:44]}  O-O {[%clk 0:02:59]} 12. g4 {[%clk 0:01:40]}  Bg6 {[%clk 0:02:59]} 13. Nh4 {[%clk 0:01:41]}  Bc2 {[%clk 0:02:50]} 14. Kd2 {[%clk 0:01:13]}  Bg6 {[%clk 0:02:42]} 15. Nxg6 {[%clk 0:01:11]}  fxg6 {[%clk 0:02:38]} 16. f4 {[%clk 0:01:09]}  Nbd7 {[%clk 0:02:34]} 17. Kc2 {[%clk 0:01:01]}  Rae8 {[%clk 0:02:17]} 18. Bf3 {[%clk 0:00:51]}  Bd8 {[%clk 0:02:15]} 19. h4 {[%clk 0:00:50]}  Bc7 {[%clk 0:02:11]} 20. e3 {[%clk 0:00:50]}  Kh8 {[%clk 0:02:02]} 21. Rh3 {[%clk 0:00:48]}  Ng8 {[%clk 0:02:02]} 22. Bd2 {[%clk 0:00:36]}  h6 {[%clk 0:01:48]} 23. Be2 {[%clk 0:00:33]}  Ndf6 {[%clk 0:01:45]} 24. Rg1 {[%clk 0:00:31]}  Ne7 {[%clk 0:01:39]} 25. Bd3 {[%clk 0:00:30]}  Nd7 {[%clk 0:01:19]} 26. Ne2 {[%clk 0:00:26]}  Kg8 {[%clk 0:01:18]} 27. Ng3 {[%clk 0:00:26]}  Nf6 {[%clk 0:01:17]} 28. Ne2 {[%clk 0:00:25]}  Nd7 {[%clk 0:01:11]} 29. Rhh1 {[%clk 0:00:24]}  Rf7 {[%clk 0:01:11]} 30. Ng3 {[%clk 0:00:24]}  Ref8 {[%clk 0:01:10]} 31. Ne2 {[%clk 0:00:21]}  Ra8 {[%clk 0:00:55]} 32. Ra1 {[%clk 0:00:20]}  Nf6 {[%clk 0:00:53]} 33. Rhg1 {[%clk 0:00:19]}  Nh7 {[%clk 0:00:47]} 34. Rh1 {[%clk 0:00:16]}  h5 {[%clk 0:00:42]} 35. gxh5 {[%clk 0:00:14]}  gxh5 {[%clk 0:00:43]} 36. Rag1 {[%clk 0:00:14]}  Nf6 {[%clk 0:00:40]} 37. Rg5 {[%clk 0:00:12]}  Re8 {[%clk 0:00:15]} 38. Ng3 {[%clk 0:00:12]}  Nf5 {[%clk 0:00:10]} 39. Bxf5 {[%clk 0:00:10]}  exf5 {[%clk 0:00:11]} 40. Nxf5 {[%clk 0:00:11]}  Kf8 {[%clk 0:00:11]} 41. Ng3 {[%clk 0:00:11]}  Ne4 {[%clk 0:00:10]} 42. Nxe4 {[%clk 0:00:11]}  Rxe4 {[%clk 0:00:10]} 43. Rxh5 {[%clk 0:00:11]}  Kg8 {[%clk 0:00:10]} 44. Rg5 {[%clk 0:00:11]}  Re6 {[%clk 0:00:10]} 45. Rhg1 {[%clk 0:00:11]}  Kh7 {[%clk 0:00:11]} 46. Rh5+ {[%clk 0:00:11]}  Kg8 {[%clk 0:00:11]} 47. Rhg5 {[%clk 0:00:11]}  Kh7 {[%clk 0:00:11]} 48. Kd3 {[%clk 0:00:11]}  Rh6 {[%clk 0:00:11]} 49. h5 {[%clk 0:00:12]}  Bd8 {[%clk 0:00:12]} 50. Rg6 {[%clk 0:00:10]}  Rxh5 {[%clk 0:00:12]} 51. Re6 {[%clk 0:00:10]}  Bf6 {[%clk 0:00:12]} 52. Re8 {[%clk 0:00:10]}  Rh2 {[%clk 0:00:10]} 53. Rg3 {[%clk 0:00:10]}  Rh5 {[%clk 0:00:10]} 54. Rg1 {[%clk 0:00:09]}  g6 {[%clk 0:00:09]} 55. Rb8 {[%clk 0:00:08]}  Bg7 {[%clk 0:00:09]} 56. Rg5 {[%clk 0:00:08]}  Rh3 {[%clk 0:00:07]} 57. Rg4 {[%clk 0:00:06]}  Re7 {[%clk 0:00:07]} 58. Rd8 {[%clk 0:00:06]}  Bh6 {[%clk 0:00:07]} 59. Rd6 {[%clk 0:00:07]}  Rg7 {[%clk 0:00:06]} 60. Re6 {[%clk 0:00:07]}  Rh5 {[%clk 0:00:05]} 61. Rd6 {[%clk 0:00:07]}  Rf5 {[%clk 0:00:04]} 62. Re6 {[%clk 0:00:07]}  Rh5 {[%clk 0:00:04]} 63. Bc3 {[%clk 0:00:07]}  Rh2 {[%clk 0:00:04]} 64. Bd2 {[%clk 0:00:07]}  Rh3 {[%clk 0:00:03]} 65. Re8 {[%clk 0:00:06]}  Rh5 {[%clk 0:00:03]} 66. Re6 {[%clk 0:00:06]}  Rh3 {[%clk 0:00:03]} 67. Re8 {[%clk 0:00:06]}  Rf3 {[%clk 0:00:03]} 68. Re6 {[%clk 0:00:07]}  Rh3 {[%clk 0:00:04]} 1/2-1/2


[Site "https://www.chess.com"]

[Event "Titled Tuesday Blitz September 28 2021"]
[White "Milchev, Nikolay"]
[Black "Vakhlamov, Igor L."]
[WhiteFideId "2906090"]
[BlackFideId "24126748"]
[WhiteElo "2449"]
[BlackElo "2416"]
[Result "0-1"]
[Round "05"]
[TimeControl "180+1"]
[Date "2021.09.28"]
[WhiteClock "0:00:53"]
[BlackClock "0:00:09"]

1. Nf3 {[%clk 0:02:22]}  Nf6 {[%clk 0:02:56]} 2. c4 {[%clk 0:02:22]}  c5 {[%clk 0:02:56]} 3. Nc3 {[%clk 0:02:23]}  Nc6 {[%clk 0:02:56]} 4. g3 {[%clk 0:02:23]}  g6 {[%clk 0:02:56]} 5. Bg2 {[%clk 0:02:24]}  Bg7 {[%clk 0:02:56]} 6. O-O {[%clk 0:02:25]}  O-O {[%clk 0:02:55]} 7. a3 {[%clk 0:02:26]}  d5 {[%clk 0:02:54]} 8. cxd5 {[%clk 0:02:27]}  Nxd5 {[%clk 0:02:55]} 9. Rb1 {[%clk 0:02:20]}  Bf5 {[%clk 0:02:24]} 10. Ra1 {[%clk 0:02:20]}  Nc7 {[%clk 0:02:18]} 11. d3 {[%clk 0:02:20]}  Qd7 {[%clk 0:02:17]} 12. Re1 {[%clk 0:02:19]}  Rac8 {[%clk 0:02:13]} 13. Bd2 {[%clk 0:02:18]}  Rfd8 {[%clk 0:02:13]} 14. Rc1 {[%clk 0:02:18]}  b6 {[%clk 0:02:13]} 15. Qa4 {[%clk 0:02:17]}  Ne6 {[%clk 0:01:56]} 16. b4 {[%clk 0:02:15]}  Ncd4 {[%clk 0:01:41]} 17. Qxd7 {[%clk 0:02:15]}  Rxd7 {[%clk 0:01:29]} 18. Nxd4 {[%clk 0:02:00]}  Nxd4 {[%clk 0:01:24]} 19. bxc5 {[%clk 0:01:56]}  Nb3 {[%clk 0:01:17]} 20. Be3 {[%clk 0:01:57]}  Nxc1 {[%clk 0:01:13]} 21. Rxc1 {[%clk 0:01:58]}  bxc5 {[%clk 0:01:12]} 22. Ne4 {[%clk 0:01:50]}  Bxe4 {[%clk 0:01:05]} 23. Bxe4 {[%clk 0:01:51]}  Bd4 {[%clk 0:01:05]} 24. Rc4 {[%clk 0:01:48]}  Bxe3 {[%clk 0:01:05]} 25. fxe3 {[%clk 0:01:49]}  Rcc7 {[%clk 0:01:05]} 26. Kf2 {[%clk 0:01:49]}  f5 {[%clk 0:01:04]} 27. Bf3 {[%clk 0:01:48]}  Kg7 {[%clk 0:01:04]} 28. g4 {[%clk 0:01:49]}  e6 {[%clk 0:01:04]} 29. Kg3 {[%clk 0:01:47]}  Kf6 {[%clk 0:01:03]} 30. h4 {[%clk 0:01:47]}  h6 {[%clk 0:01:02]} 31. Kf4 {[%clk 0:01:45]}  g5+ {[%clk 0:01:01]} 32. hxg5+ {[%clk 0:01:45]}  hxg5+ {[%clk 0:01:02]} 33. Kg3 {[%clk 0:01:46]}  Rh7 {[%clk 0:01:01]} 34. Ra4 {[%clk 0:01:37]}  Ke5 {[%clk 0:01:00]} 35. Ra5 {[%clk 0:01:28]}  f4+ {[%clk 0:00:59]} 36. exf4+ {[%clk 0:01:28]}  gxf4+ {[%clk 0:01:00]} 37. Kf2 {[%clk 0:01:29]}  Kd4 {[%clk 0:00:54]} 38. Ra4+ {[%clk 0:01:28]}  Kc3 {[%clk 0:00:54]} 39. Rxf4 {[%clk 0:01:28]}  Kb3 {[%clk 0:00:50]} 40. a4 {[%clk 0:01:27]}  c4 {[%clk 0:00:50]} 41. dxc4 {[%clk 0:01:22]}  Rxc4 {[%clk 0:00:51]} 42. Rxc4 {[%clk 0:01:06]}  Kxc4 {[%clk 0:00:52]} 43. Ke3 {[%clk 0:01:07]}  Rc7 {[%clk 0:00:41]} 44. Kf4 {[%clk 0:01:07]}  Kb4 {[%clk 0:00:40]} 45. Ke5 {[%clk 0:01:07]}  Kxa4 {[%clk 0:00:40]} 46. Kxe6 {[%clk 0:01:08]}  Kb4 {[%clk 0:00:38]} 47. g5 {[%clk 0:01:08]}  a5 {[%clk 0:00:33]} 48. g6 {[%clk 0:01:08]}  Kc5 {[%clk 0:00:28]} 49. Kf6 {[%clk 0:01:05]}  a4 {[%clk 0:00:27]} 50. Bg4 {[%clk 0:01:03]}  Kd6 {[%clk 0:00:16]} 51. g7 {[%clk 0:01:00]}  Rxg7 {[%clk 0:00:10]} 52. Kxg7 {[%clk 0:01:00]}  a3 {[%clk 0:00:10]} 53. Kf6 {[%clk 0:00:52]}  a2 {[%clk 0:00:10]} 54. e4 {[%clk 0:00:53]}  a1=Q+ {[%clk 0:00:10]} 55. Kg5 {[%clk 0:00:54]}  Ke5 {[%clk 0:00:09]} 56. Bf5 {[%clk 0:00:54]}  Qg1+ {[%clk 0:00:09]} 57. Kh6 {[%clk 0:00:53]}  Kf6 {[%clk 0:00:09]} 0-1


[Site "https://www.chess.com"]